[Event "Titled Tuesday Blitz July 11 Early 2023"]
[White "Skiadopoulos, Nikolaos"]
[Black "Blokhin, Sofia"]
[WhiteFideId "4200772"]
[BlackFideId "4508190"]
[WhiteElo "1913"]
[BlackElo "2325"]
[Result "1-0"]
[Round "3"]
[TimeControl "180+2"]
[Date "2023.07.11"]
[WhiteClock "0:00:22"]
[BlackClock "0:00:05"]
[Board "223"]

1. e4 {[%clk 0:02:58]}  c5 {[%clk 0:02:58]} 2. Nf3 {[%clk 0:02:55]}  e6 {[%clk 0:02:58]} 3. c3 {[%clk 0:02:48]}  d5 {[%clk 0:02:56]} 4. exd5 {[%clk 0:02:47]}  exd5 {[%clk 0:02:55]} 5. d4 {[%clk 0:02:45]}  Nf6 {[%clk 0:02:55]} 6. Bd3 {[%clk 0:02:43]}  Nc6 {[%clk 0:02:55]} 7. O-O {[%clk 0:02:42]}  Be7 {[%clk 0:02:55]} 8. h3 {[%clk 0:02:40]}  O-O {[%clk 0:02:54]} 9. dxc5 {[%clk 0:02:40]}  Bxc5 {[%clk 0:02:54]} 10. b4 {[%clk 0:02:39]}  Bd6 {[%clk 0:02:51]} 11. b5 {[%clk 0:02:38]}  Ne7 {[%clk 0:02:49]} 12. a4 {[%clk 0:02:35]}  Ng6 {[%clk 0:02:49]} 13. Ba3 {[%clk 0:02:33]}  a6 {[%clk 0:02:48]} 14. Bxd6 {[%clk 0:02:29]}  Qxd6 {[%clk 0:02:48]} 15. bxa6 {[%clk 0:02:22]}  bxa6 {[%clk 0:02:47]} 16. Nbd2 {[%clk 0:02:20]}  Nf4 {[%clk 0:02:43]} 17. Nb3 {[%clk 0:02:17]}  Rb8 {[%clk 0:02:35]} 18. Nbd4 {[%clk 0:02:16]}  g6 {[%clk 0:02:31]} 19. Re1 {[%clk 0:02:14]}  Qd7 {[%clk 0:02:25]} 20. Bf1 {[%clk 0:02:13]}  Ne4 {[%clk 0:02:20]} 21. Qc1 {[%clk 0:01:59]}  Qc7 {[%clk 0:02:17]} 22. c4 {[%clk 0:01:50]}  Nf6 {[%clk 0:02:02]} 23. cxd5 {[%clk 0:01:45]}  Qxc1 {[%clk 0:02:00]} 24. Raxc1 {[%clk 0:01:43]}  N6xd5 {[%clk 0:02:00]} 25. Rc6 {[%clk 0:01:27]}  a5 {[%clk 0:01:51]} 26. Rc5 {[%clk 0:01:23]}  Nb4 {[%clk 0:01:07]} 27. Rxa5 {[%clk 0:01:20]}  Bd7 {[%clk 0:01:06]} 28. Ra7 {[%clk 0:01:16]}  Rfd8 {[%clk 0:00:58]} 29. Re7 {[%clk 0:01:05]}  Be8 {[%clk 0:00:58]} 30. Bb5 {[%clk 0:01:00]}  Bxb5 {[%clk 0:00:49]} 31. axb5 {[%clk 0:00:58]}  Rf8 {[%clk 0:00:48]} 32. Ne5 {[%clk 0:00:55]}  Rbd8 {[%clk 0:00:42]} 33. Ndc6 {[%clk 0:00:53]}  Rd1+ {[%clk 0:00:41]} 34. Kh2 {[%clk 0:00:52]}  Nbd3 {[%clk 0:00:36]} 35. Nxf7 {[%clk 0:00:48]}  Kg7 {[%clk 0:00:19]} 36. Nfe5+ {[%clk 0:00:44]}  Kf6 {[%clk 0:00:15]} 37. Ng4+ {[%clk 0:00:39]}  Kg5 {[%clk 0:00:14]} 38. Ne3 {[%clk 0:00:35]}  Rd2 {[%clk 0:00:12]} 39. Rxh7 {[%clk 0:00:29]}  Rxf2 {[%clk 0:00:11]} 40. h4+ {[%clk 0:00:28]}  Kf6 {[%clk 0:00:10]} 41. Ng4+ {[%clk 0:00:25]}  Kf5 {[%clk 0:00:09]} 42. Nxf2 {[%clk 0:00:25]}  Nxf2 {[%clk 0:00:10]} 43. Raf7+ {[%clk 0:00:22]}  Rxf7 {[%clk 0:00:10]} 44. Rxf7+ {[%clk 0:00:22]}  Ke4 {[%clk 0:00:11]} 45. Rxf4+ {[%clk 0:00:22]}  Kxf4 {[%clk 0:00:11]} 46. b6 {[%clk 0:00:22]}  Ne4 {[%clk 0:00:05]} 47. b7 {[%clk 0:00:22]} 1-0


[Site "https://www.chess.com"]

[Event "Titled Tuesday Blitz July 11 Early 2023"]
[White "Nakamura, Hikaru"]
[Black "Remizov, Yaroslav"]
[WhiteFideId "2016192"]
[BlackFideId "34134015"]
[WhiteElo "3227"]
[BlackElo "2773"]
[Result "1-0"]
[Round "4"]
[TimeControl "180+2"]
[Date "2023.07.11"]
[WhiteClock "0:00:46"]
[BlackClock "0:00:00"]
[Board "1"]

1. a3 {[%clk 0:03:00]}  e5 {[%clk 0:02:59]} 2. c4 {[%clk 0:02:57]}  g6 {[%clk 0:02:55]} 3. b4 {[%clk 0:02:47]}  Bg7 {[%clk 0:02:55]} 4. Bb2 {[%clk 0:02:48]}  Ne7 {[%clk 0:02:55]} 5. g3 {[%clk 0:02:48]}  O-O {[%clk 0:02:53]} 6. Bg2 {[%clk 0:02:49]}  d5 {[%clk 0:02:48]} 7. cxd5 {[%clk 0:02:48]}  Nxd5 {[%clk 0:02:49]} 8. Nc3 {[%clk 0:02:47]}  Be6 {[%clk 0:02:46]} 9. Rc1 {[%clk 0:02:47]}  Nxc3 {[%clk 0:02:43]} 10. Bxc3 {[%clk 0:02:46]}  Bd5 {[%clk 0:02:39]} 11. Nf3 {[%clk 0:02:42]}  e4 {[%clk 0:02:38]} 12. Nd4 {[%clk 0:02:31]}  e3 {[%clk 0:02:11]} 13. f3 {[%clk 0:02:31]}  exd2+ {[%clk 0:02:10]} 14. Qxd2 {[%clk 0:02:31]}  Nc6 {[%clk 0:02:10]} 15. Nb5 {[%clk 0:02:08]}  Bxc3 {[%clk 0:01:55]} 16. Rxc3 {[%clk 0:02:04]}  a6 {[%clk 0:01:37]} 17. Nd4 {[%clk 0:01:26]}  Nxd4 {[%clk 0:01:26]} 18. Qxd4 {[%clk 0:01:25]}  Bc6 {[%clk 0:01:27]} 19. Qf4 {[%clk 0:01:21]}  Re8 {[%clk 0:01:16]} 20. Kf2 {[%clk 0:01:20]}  Qe7 {[%clk 0:01:12]} 21. e4 {[%clk 0:01:09]}  Rad8 {[%clk 0:01:10]} 22. Rhc1 {[%clk 0:01:09]}  Qd6 {[%clk 0:01:06]} 23. Qxd6 {[%clk 0:01:04]}  Rxd6 {[%clk 0:01:07]} 24. R1c2 {[%clk 0:01:05]}  Red8 {[%clk 0:01:07]} 25. Bf1 {[%clk 0:01:05]}  Rd2+ {[%clk 0:01:04]} 26. Ke3 {[%clk 0:01:04]}  Rxc2 {[%clk 0:01:03]} 27. Rxc2 {[%clk 0:01:05]}  Rd7 {[%clk 0:00:55]} 28. Rc5 {[%clk 0:00:47]}  Rd1 {[%clk 0:00:53]} 29. Bxa6 {[%clk 0:00:45]}  Ra1 {[%clk 0:00:48]} 30. Bc4 {[%clk 0:00:46]}  Rxa3+ {[%clk 0:00:47]} 31. Kf4 {[%clk 0:00:46]}  Kg7 {[%clk 0:00:00]} 32. b5 {[%clk 0:00:46]} 1-0


[Site "https://www.chess.com"]

[Event "Titled Tuesday Blitz July 11 Early 2023"]
[White "Firouzja, Alireza"]
[Black "Preotu, Razvan"]
[WhiteFideId "12573981"]
[BlackFideId "2613280"]
[WhiteElo "3091"]
[BlackElo "2758"]
[Result "1-0"]
[Round "4"]
[TimeControl "180+2"]
[Date "2023.07.11"]
[WhiteClock "0:01:00"]
[BlackClock "0:00:00"]
[Board "3"]

1. d4 {[%clk 0:02:50]}  Nf6 {[%clk 0:02:59]} 2. Bg5 {[%clk 0:02:47]}  d5 {[%clk 0:02:57]} 3. e3 {[%clk 0:02:47]}  c5 {[%clk 0:02:57]} 4. Bxf6 {[%clk 0:02:47]}  gxf6 {[%clk 0:02:56]} 5. dxc5 {[%clk 0:02:48]}  e6 {[%clk 0:02:56]} 6. Nf3 {[%clk 0:02:48]}  Bxc5 {[%clk 0:02:56]} 7. Be2 {[%clk 0:02:49]}  Nc6 {[%clk 0:02:54]} 8. O-O {[%clk 0:02:49]}  O-O {[%clk 0:02:39]} 9. Nbd2 {[%clk 0:02:45]}  f5 {[%clk 0:02:38]} 10. a3 {[%clk 0:02:44]}  Be7 {[%clk 0:02:31]} 11. c4 {[%clk 0:02:44]}  d4 {[%clk 0:02:17]} 12. exd4 {[%clk 0:02:43]}  Nxd4 {[%clk 0:02:18]} 13. Nxd4 {[%clk 0:02:43]}  Qxd4 {[%clk 0:02:18]} 14. Qc2 {[%clk 0:02:44]}  Bf6 {[%clk 0:02:18]} 15. b4 {[%clk 0:02:39]}  Qc3 {[%clk 0:01:40]} 16. Qxc3 {[%clk 0:02:30]}  Bxc3 {[%clk 0:01:41]} 17. Rad1 {[%clk 0:02:31]}  b6 {[%clk 0:01:14]} 18. Bf3 {[%clk 0:02:20]}  Rb8 {[%clk 0:01:14]} 19. Nb3 {[%clk 0:02:21]}  Ba6 {[%clk 0:01:15]} 20. b5 {[%clk 0:02:21]}  Bb7 {[%clk 0:01:13]} 21. Rd7 {[%clk 0:02:21]}  Bxf3 {[%clk 0:01:11]} 22. gxf3 {[%clk 0:02:21]}  Rfc8 {[%clk 0:01:09]} 23. Rxa7 {[%clk 0:02:19]}  Rxc4 {[%clk 0:01:09]} 24. Rc1 {[%clk 0:02:19]}  Rcc8 {[%clk 0:00:55]} 25. a4 {[%clk 0:02:10]}  Kg7 {[%clk 0:00:45]} 26. Kf1 {[%clk 0:01:47]}  Kf6 {[%clk 0:00:46]} 27. h3 {[%clk 0:01:40]}  Bb4 {[%clk 0:00:32]} 28. Rac7 {[%clk 0:01:23]}  Rxc7 {[%clk 0:00:24]} 29. Rxc7 {[%clk 0:01:24]}  Ra8 {[%clk 0:00:24]} 30. Rc4 {[%clk 0:01:20]}  Be7 {[%clk 0:00:17]} 31. Nd4 {[%clk 0:01:17]}  Bc5 {[%clk 0:00:15]} 32. Nc6 {[%clk 0:01:16]}  Bd6 {[%clk 0:00:15]} 33. Rd4 {[%clk 0:01:12]}  Bc5 {[%clk 0:00:14]} 34. Rh4 {[%clk 0:01:12]}  Bd6 {[%clk 0:00:14]} 35. Rc4 {[%clk 0:01:12]}  h5 {[%clk 0:00:12]} 36. f4 {[%clk 0:01:10]}  Bf8 {[%clk 0:00:08]} 37. a5 {[%clk 0:01:08]}  bxa5 {[%clk 0:00:07]} 38. b6 {[%clk 0:01:08]}  Bd6 {[%clk 0:00:08]} 39. b7 {[%clk 0:01:09]}  Ra6 {[%clk 0:00:06]} 40. b8=Q {[%clk 0:01:05]}  Bxb8 {[%clk 0:00:06]} 41. Nxb8 {[%clk 0:01:06]}  Rd6 {[%clk 0:00:06]} 42. Ra4 {[%clk 0:01:03]}  Rd1+ {[%clk 0:00:03]} 43. Kg2 {[%clk 0:01:03]}  Rd5 {[%clk 0:00:03]} 44. Nc6 {[%clk 0:01:02]}  Rd6 {[%clk 0:00:04]} 45. Nxa5 {[%clk 0:01:00]}  Ra6 {[%clk 0:00:04]} 46. Ra3 {[%clk 0:01:00]}  h4 {[%clk 0:00:04]} 47. Nc4 {[%clk 0:01:00]}  Rc6 {[%clk 0:00:03]} 48. Ne5 {[%clk 0:01:00]}  Rc7 {[%clk 0:00:03]} 49. Ra4 {[%clk 0:00:59]}  Rb7 {[%clk 0:00:00]} 50. Nf3 {[%clk 0:01:00]} 1-0


[Site "https://www.chess.com"]

[Event "Titled Tuesday Blitz July 11 Early 2023"]
[White "Concio, Michael Jr."]
[Black "Dubov, Daniil"]
[WhiteFideId "5217873"]
[BlackFideId "24126055"]
[WhiteElo "2754"]
[BlackElo "3082"]
[Result "0-1"]
[Round "4"]
[TimeControl "180+2"]
[Date "2023.07.11"]
[WhiteClock "0:00:13"]
[BlackClock "0:01:18"]
[Board "4"]

1. e4 {[%clk 0:02:59]}  e5 {[%clk 0:03:00]} 2. Nf3 {[%clk 0:02:57]}  Nf6 {[%clk 0:03:00]} 3. Nxe5 {[%clk 0:02:57]}  d6 {[%clk 0:03:00]} 4. Nf3 {[%clk 0:02:58]}  Nxe4 {[%clk 0:03:00]} 5. d4 {[%clk 0:02:58]}  d5 {[%clk 0:03:00]} 6. Bd3 {[%clk 0:02:58]}  Bd6 {[%clk 0:02:59]} 7. c4 {[%clk 0:02:57]}  Bb4+ {[%clk 0:02:45]} 8. Nbd2 {[%clk 0:02:54]}  O-O {[%clk 0:02:37]} 9. O-O {[%clk 0:02:53]}  Bxd2 {[%clk 0:02:37]} 10. Bxd2 {[%clk 0:02:48]}  Bf5 {[%clk 0:02:31]} 11. Bf4 {[%clk 0:02:33]}  Nc6 {[%clk 0:02:29]} 12. c5 {[%clk 0:02:22]}  Bg4 {[%clk 0:02:22]} 13. h3 {[%clk 0:02:20]}  Bxf3 {[%clk 0:02:19]} 14. Qxf3 {[%clk 0:01:57]}  Nxd4 {[%clk 0:02:18]} 15. Qe3 {[%clk 0:01:58]}  Nf5 {[%clk 0:02:16]} 16. Qf3 {[%clk 0:01:47]}  Re8 {[%clk 0:02:13]} 17. Rfe1 {[%clk 0:01:47]}  Nd4 {[%clk 0:02:05]} 18. Qe3 {[%clk 0:01:33]}  Qf6 {[%clk 0:02:00]} 19. Bxc7 {[%clk 0:01:28]}  Re6 {[%clk 0:01:59]} 20. Bxe4 {[%clk 0:01:14]}  dxe4 {[%clk 0:02:00]} 21. Rac1 {[%clk 0:00:53]}  Rae8 {[%clk 0:01:53]} 22. Bf4 {[%clk 0:00:36]}  h6 {[%clk 0:01:28]} 23. Qg3 {[%clk 0:00:28]}  Qf5 {[%clk 0:01:22]} 24. Qg4 {[%clk 0:00:23]}  Qd5 {[%clk 0:01:21]} 25. Rcd1 {[%clk 0:00:19]}  Rg6 {[%clk 0:01:19]} 26. Qh4 {[%clk 0:00:13]}  Nf3+ {[%clk 0:01:18]} 0-1


[Site "https://www.chess.com"]

[Event "Titled Tuesday Blitz July 11 Early 2023"]
[White "Bluebaum, Matthias"]
[Black "Bauman_Guy"]
[WhiteFideId "24651516"]
[WhiteElo "3057"]
[BlackElo "2745"]
[Result "1-0"]
[Round "4"]
[TimeControl "180+2"]
[Date "2023.07.11"]
[WhiteClock "0:00:21"]
[BlackClock "0:00:06"]
[Board "5"]

1. d4 {[%clk 0:03:00]}  Nf6 {[%clk 0:02:59]} 2. c4 {[%clk 0:02:58]}  e6 {[%clk 0:02:59]} 3. Nc3 {[%clk 0:02:59]}  Bb4 {[%clk 0:02:59]} 4. e3 {[%clk 0:03:00]}  O-O {[%clk 0:02:59]} 5. Bd2 {[%clk 0:03:00]}  b6 {[%clk 0:02:59]} 6. Nf3 {[%clk 0:03:00]}  Bb7 {[%clk 0:02:59]} 7. Bd3 {[%clk 0:03:01]}  d6 {[%clk 0:02:59]} 8. O-O {[%clk 0:03:00]}  Nbd7 {[%clk 0:02:59]} 9. a3 {[%clk 0:03:01]}  Bxc3 {[%clk 0:02:59]} 10. Bxc3 {[%clk 0:03:02]}  Ne4 {[%clk 0:02:59]} 11. Be1 {[%clk 0:03:02]}  f5 {[%clk 0:02:59]} 12. Kh1 {[%clk 0:03:02]}  e5 {[%clk 0:02:53]} 13. d5 {[%clk 0:02:59]}  Ng5 {[%clk 0:02:45]} 14. Nxg5 {[%clk 0:02:56]}  Qxg5 {[%clk 0:02:45]} 15. f4 {[%clk 0:02:57]}  Qe7 {[%clk 0:02:45]} 16. Bc3 {[%clk 0:02:53]}  g6 {[%clk 0:02:43]} 17. b4 {[%clk 0:02:47]}  a5 {[%clk 0:02:43]} 18. Qd2 {[%clk 0:02:42]}  Ra7 {[%clk 0:02:14]} 19. bxa5 {[%clk 0:02:32]}  bxa5 {[%clk 0:02:10]} 20. Bxa5 {[%clk 0:02:33]}  Nc5 {[%clk 0:02:10]} 21. Bc2 {[%clk 0:02:30]}  Ba6 {[%clk 0:02:06]} 22. fxe5 {[%clk 0:02:30]}  Bxc4 {[%clk 0:01:59]} 23. exd6 {[%clk 0:02:03]}  cxd6 {[%clk 0:01:59]} 24. Rf4 {[%clk 0:01:59]}  Bb3 {[%clk 0:01:44]} 25. Bb6 {[%clk 0:01:28]}  Bxc2 {[%clk 0:01:43]} 26. Qxc2 {[%clk 0:01:17]}  Rb7 {[%clk 0:01:32]} 27. Bxc5 {[%clk 0:01:17]}  dxc5 {[%clk 0:01:33]} 28. e4 {[%clk 0:01:13]}  fxe4 {[%clk 0:01:06]} 29. Rxe4 {[%clk 0:01:10]}  Qf6 {[%clk 0:01:05]} 30. Rg1 {[%clk 0:00:59]}  Rb2 {[%clk 0:01:00]} 31. Qxc5 {[%clk 0:00:58]}  Qf2 {[%clk 0:00:44]} 32. Qxf2 {[%clk 0:00:56]}  Rfxf2 {[%clk 0:00:44]} 33. Rd4 {[%clk 0:00:48]}  Kf7 {[%clk 0:00:44]} 34. d6 {[%clk 0:00:35]}  Ke8 {[%clk 0:00:43]} 35. d7+ {[%clk 0:00:33]}  Kd8 {[%clk 0:00:41]} 36. h3 {[%clk 0:00:30]}  Rfd2 {[%clk 0:00:36]} 37. Rxd2 {[%clk 0:00:27]}  Rxd2 {[%clk 0:00:36]} 38. Ra1 {[%clk 0:00:27]}  Kxd7 {[%clk 0:00:34]} 39. a4 {[%clk 0:00:28]}  Kc6 {[%clk 0:00:33]} 40. a5 {[%clk 0:00:28]}  Kb7 {[%clk 0:00:32]} 41. a6+ {[%clk 0:00:28]}  Ka7 {[%clk 0:00:33]} 42. Kh2 {[%clk 0:00:29]}  Rd3 {[%clk 0:00:31]} 43. Ra5 {[%clk 0:00:29]}  Rb3 {[%clk 0:00:27]} 44. h4 {[%clk 0:00:29]}  Rc3 {[%clk 0:00:23]} 45. g3 {[%clk 0:00:29]}  Rb3 {[%clk 0:00:22]} 46. Kg2 {[%clk 0:00:29]}  Rc3 {[%clk 0:00:20]} 47. Kh3 {[%clk 0:00:29]}  Rc4 {[%clk 0:00:20]} 48. h5 {[%clk 0:00:28]}  Rc6 {[%clk 0:00:12]} 49. h6 {[%clk 0:00:19]}  g5 {[%clk 0:00:10]} 50. Kg4 {[%clk 0:00:19]}  Rxh6 {[%clk 0:00:11]} 51. Kxg5 {[%clk 0:00:19]}  Rg6+ {[%clk 0:00:11]} 52. Kh4 {[%clk 0:00:20]}  Rh6+ {[%clk 0:00:11]} 53. Rh5 {[%clk 0:00:19]}  Rg6 {[%clk 0:00:09]} 54. Rxh7+ {[%clk 0:00:19]}  Kxa6 {[%clk 0:00:10]} 55. g4 {[%clk 0:00:19]}  Kb6 {[%clk 0:00:09]} 56. g5 {[%clk 0:00:20]}  Kc5 {[%clk 0:00:09]} 57. Rd7 {[%clk 0:00:18]}  Kc6 {[%clk 0:00:09]} 58. Rd1 {[%clk 0:00:18]}  Rg8 {[%clk 0:00:10]} 59. Kh5 {[%clk 0:00:19]}  Rf8 {[%clk 0:00:10]} 60. g6 {[%clk 0:00:19]}  Rf2 {[%clk 0:00:10]} 61. g7 {[%clk 0:00:19]}  Rh2+ {[%clk 0:00:10]} 62. Kg6 {[%clk 0:00:20]}  Rg2+ {[%clk 0:00:11]} 63. Kf7 {[%clk 0:00:20]}  Rf2+ {[%clk 0:00:11]} 64. Kg8 {[%clk 0:00:21]}  Rg2 {[%clk 0:00:11]} 65. Rh1 {[%clk 0:00:21]}  Kd7 {[%clk 0:00:06]} 66. Kh8 {[%clk 0:00:21]} 1-0


[Site "https://www.chess.com"]

[Event "Titled Tuesday Blitz July 11 Early 2023"]
[White "Schwabeneder, Florian"]
[Black "Kollars, Dmitrij"]
[WhiteFideId "1626191"]
[BlackFideId "12909572"]
[WhiteElo "2732"]
[BlackElo "3012"]
[Result "0-1"]
[Round "4"]
[TimeControl "180+2"]
[Date "2023.07.11"]
[WhiteClock "0:00:42"]
[BlackClock "0:01:59"]
[Board "7"]

1. c4 {[%clk 0:03:00]}  Nf6 {[%clk 0:02:57]} 2. Nc3 {[%clk 0:03:00]}  g6 {[%clk 0:02:57]} 3. g3 {[%clk 0:02:59]}  Bg7 {[%clk 0:02:57]} 4. Bg2 {[%clk 0:03:00]}  O-O {[%clk 0:02:58]} 5. d3 {[%clk 0:02:59]}  c5 {[%clk 0:02:53]} 6. Rb1 {[%clk 0:02:58]}  Nc6 {[%clk 0:02:53]} 7. a3 {[%clk 0:02:56]}  e6 {[%clk 0:02:38]} 8. e4 {[%clk 0:02:34]}  d5 {[%clk 0:02:33]} 9. cxd5 {[%clk 0:02:04]}  exd5 {[%clk 0:02:34]} 10. exd5 {[%clk 0:02:04]}  Nd4 {[%clk 0:02:33]} 11. h3 {[%clk 0:01:46]}  Re8+ {[%clk 0:02:30]} 12. Kf1 {[%clk 0:01:43]}  b6 {[%clk 0:02:22]} 13. Nf3 {[%clk 0:01:39]}  Bb7 {[%clk 0:02:15]} 14. Bg5 {[%clk 0:01:30]}  h6 {[%clk 0:02:00]} 15. Bxf6 {[%clk 0:01:23]}  Bxf6 {[%clk 0:02:01]} 16. Nxd4 {[%clk 0:01:21]}  Bxd4 {[%clk 0:02:01]} 17. Qf3 {[%clk 0:01:16]}  Re5 {[%clk 0:02:00]} 18. Qf4 {[%clk 0:00:42]}  Rf5 {[%clk 0:01:59]} 0-1


[Site "https://www.chess.com"]

[Event "Titled Tuesday Blitz July 11 Early 2023"]
[White "Terry, Renato"]
[Black "Wagner, Dennis"]
[WhiteFideId "3803457"]
[BlackFideId "24650684"]
[WhiteElo "2991"]
[BlackElo "2714"]
[Result "0-1"]
[Round "4"]
[TimeControl "180+2"]
[Date "2023.07.11"]
[WhiteClock "0:00:46"]
[BlackClock "0:00:06"]
[Board "9"]

1. d4 {[%clk 0:03:00]}  Nf6 {[%clk 0:02:59]} 2. Nf3 {[%clk 0:03:01]}  e6 {[%clk 0:02:58]} 3. c4 {[%clk 0:03:01]}  b6 {[%clk 0:02:58]} 4. g3 {[%clk 0:03:01]}  Bb7 {[%clk 0:02:59]} 5. Bg2 {[%clk 0:03:01]}  Bb4+ {[%clk 0:02:59]} 6. Nbd2 {[%clk 0:03:01]}  O-O {[%clk 0:02:59]} 7. O-O {[%clk 0:03:01]}  a5 {[%clk 0:02:59]} 8. Qc2 {[%clk 0:03:00]}  c5 {[%clk 0:02:51]} 9. dxc5 {[%clk 0:02:50]}  Bxc5 {[%clk 0:02:50]} 10. Nb3 {[%clk 0:02:49]}  Be4 {[%clk 0:02:46]} 11. Qd1 {[%clk 0:02:45]}  d5 {[%clk 0:02:27]} 12. Nxc5 {[%clk 0:02:42]}  bxc5 {[%clk 0:02:27]} 13. b3 {[%clk 0:02:37]}  Nc6 {[%clk 0:01:54]} 14. cxd5 {[%clk 0:02:16]}  exd5 {[%clk 0:01:52]} 15. Ba3 {[%clk 0:02:16]}  Nb4 {[%clk 0:01:48]} 16. Qd2 {[%clk 0:02:15]}  d4 {[%clk 0:01:40]} 17. Rac1 {[%clk 0:02:14]}  Qd5 {[%clk 0:01:39]} 18. Rc4 {[%clk 0:02:05]}  h6 {[%clk 0:01:13]} 19. Rfc1 {[%clk 0:02:04]}  Nd7 {[%clk 0:01:11]} 20. Bf1 {[%clk 0:01:50]}  Bxf3 {[%clk 0:00:54]} 21. exf3 {[%clk 0:01:44]}  Ne5 {[%clk 0:00:55]} 22. Be2 {[%clk 0:01:43]}  Nxc4 {[%clk 0:00:40]} 23. Rxc4 {[%clk 0:01:44]}  Rfe8 {[%clk 0:00:40]} 24. Bc1 {[%clk 0:01:38]}  Re6 {[%clk 0:00:37]} 25. a3 {[%clk 0:01:38]}  Nc6 {[%clk 0:00:35]} 26. Rc2 {[%clk 0:01:35]}  Rae8 {[%clk 0:00:33]} 27. Qd1 {[%clk 0:01:28]}  d3 {[%clk 0:00:27]} 28. Qxd3 {[%clk 0:01:24]}  Nd4 {[%clk 0:00:27]} 29. Bd1 {[%clk 0:01:21]}  Nxf3+ {[%clk 0:00:22]} 30. Qxf3 {[%clk 0:01:20]}  Re1+ {[%clk 0:00:22]} 31. Kg2 {[%clk 0:01:21]}  Rxd1 {[%clk 0:00:21]} 32. Qxd5 {[%clk 0:01:21]}  Rxd5 {[%clk 0:00:21]} 33. Be3 {[%clk 0:01:22]}  Rb8 {[%clk 0:00:20]} 34. Rc3 {[%clk 0:01:22]}  Rc8 {[%clk 0:00:16]} 35. g4 {[%clk 0:01:17]}  a4 {[%clk 0:00:12]} 36. bxa4 {[%clk 0:01:05]}  c4 {[%clk 0:00:12]} 37. Kf3 {[%clk 0:01:06]}  Ra5 {[%clk 0:00:13]} 38. Ke4 {[%clk 0:01:02]}  Rxa4 {[%clk 0:00:13]} 39. Kd5 {[%clk 0:01:02]}  Ra5+ {[%clk 0:00:12]} 40. Kd6 {[%clk 0:01:02]}  Ra6+ {[%clk 0:00:11]} 41. Kd5 {[%clk 0:01:02]}  Rac6 {[%clk 0:00:08]} 42. h3 {[%clk 0:00:57]}  R6c7 {[%clk 0:00:09]} 43. Bf4 {[%clk 0:00:53]}  Rd7+ {[%clk 0:00:09]} 44. Ke4 {[%clk 0:00:53]}  g5 {[%clk 0:00:08]} 45. Be3 {[%clk 0:00:53]}  f6 {[%clk 0:00:07]} 46. a4 {[%clk 0:00:51]}  Kf7 {[%clk 0:00:07]} 47. a5 {[%clk 0:00:50]}  Re7+ {[%clk 0:00:05]} 48. Kf3 {[%clk 0:00:50]}  Re6 {[%clk 0:00:05]} 49. Bb6 {[%clk 0:00:48]}  Rd6 {[%clk 0:00:05]} 50. Ke4 {[%clk 0:00:48]}  Re8+ {[%clk 0:00:05]} 51. Kf3 {[%clk 0:00:48]}  Rd3+ {[%clk 0:00:05]} 52. Rxd3 {[%clk 0:00:48]}  cxd3 {[%clk 0:00:06]} 53. a6 {[%clk 0:00:46]}  d2 {[%clk 0:00:06]} 0-1


[Site "https://www.chess.com"]

[Event "Titled Tuesday Blitz July 11 Early 2023"]
[White "Tang, Andrew"]
[Black "Shuvalova, Polina"]
[WhiteFideId "2059630"]
[BlackFideId "24171760"]
[WhiteElo "2913"]
[BlackElo "2696"]
[Result "1-0"]
[Round "4"]
[TimeControl "180+2"]
[Date "2023.07.11"]
[WhiteClock "0:00:11"]
[BlackClock "0:00:00"]
[Board "13"]

1. d4 {[%clk 0:03:00]}  Nf6 {[%clk 0:02:59]} 2. c4 {[%clk 0:03:00]}  e6 {[%clk 0:02:59]} 3. Nc3 {[%clk 0:03:01]}  d5 {[%clk 0:03:00]} 4. cxd5 {[%clk 0:03:01]}  Nxd5 {[%clk 0:03:01]} 5. e4 {[%clk 0:03:02]}  Nxc3 {[%clk 0:03:01]} 6. bxc3 {[%clk 0:03:03]}  c5 {[%clk 0:03:02]} 7. Nf3 {[%clk 0:03:03]}  cxd4 {[%clk 0:03:02]} 8. cxd4 {[%clk 0:03:04]}  Bb4+ {[%clk 0:03:02]} 9. Bd2 {[%clk 0:03:05]}  Bxd2+ {[%clk 0:03:02]} 10. Qxd2 {[%clk 0:03:06]}  O-O {[%clk 0:03:03]} 11. Rc1 {[%clk 0:03:07]}  b6 {[%clk 0:02:56]} 12. Bd3 {[%clk 0:03:07]}  Bb7 {[%clk 0:02:53]} 13. O-O {[%clk 0:03:08]}  Nd7 {[%clk 0:02:52]} 14. Qf4 {[%clk 0:03:07]}  Rc8 {[%clk 0:02:26]} 15. h4 {[%clk 0:03:07]}  h6 {[%clk 0:02:25]} 16. g4 {[%clk 0:02:32]}  Rxc1 {[%clk 0:02:20]} 17. Rxc1 {[%clk 0:02:32]}  Qb8 {[%clk 0:02:21]} 18. Qe3 {[%clk 0:01:23]}  Rc8 {[%clk 0:02:20]} 19. g5 {[%clk 0:01:23]}  hxg5 {[%clk 0:02:15]} 20. hxg5 {[%clk 0:01:20]}  Rxc1+ {[%clk 0:01:58]} 21. Qxc1 {[%clk 0:01:20]}  Qd6 {[%clk 0:01:58]} 22. Kg2 {[%clk 0:00:59]}  Nf8 {[%clk 0:01:41]} 23. Ne5 {[%clk 0:00:30]}  f6 {[%clk 0:01:12]} 24. gxf6 {[%clk 0:00:29]}  gxf6 {[%clk 0:01:13]} 25. Nf3 {[%clk 0:00:19]}  Ng6 {[%clk 0:01:06]} 26. Kg1 {[%clk 0:00:18]}  Qf4 {[%clk 0:00:56]} 27. Qe3 {[%clk 0:00:15]}  Qg4+ {[%clk 0:00:54]} 28. Kf1 {[%clk 0:00:13]}  Nf4 {[%clk 0:00:54]} 29. Ne1 {[%clk 0:00:09]}  Nxd3 {[%clk 0:00:45]} 30. Nxd3 {[%clk 0:00:10]}  Bxe4 {[%clk 0:00:45]} 31. Nf4 {[%clk 0:00:10]}  Qd1+ {[%clk 0:00:43]} 32. Qe1 {[%clk 0:00:09]}  Qxe1+ {[%clk 0:00:24]} 33. Kxe1 {[%clk 0:00:10]}  Kf7 {[%clk 0:00:24]} 34. Kd2 {[%clk 0:00:10]}  Ke7 {[%clk 0:00:24]} 35. a3 {[%clk 0:00:10]}  Kd6 {[%clk 0:00:24]} 36. Ne2 {[%clk 0:00:10]}  Bc6 {[%clk 0:00:23]} 37. Kc3 {[%clk 0:00:09]}  Bb5 {[%clk 0:00:21]} 38. Ng3 {[%clk 0:00:10]}  Kd5 {[%clk 0:00:19]} 39. Nh5 {[%clk 0:00:10]}  f5 {[%clk 0:00:18]} 40. Nf4+ {[%clk 0:00:10]}  Kd6 {[%clk 0:00:19]} 41. Ng6 {[%clk 0:00:11]}  Bc6 {[%clk 0:00:19]} 42. Ne5 {[%clk 0:00:11]}  Bd5 {[%clk 0:00:19]} 43. Nf7+ {[%clk 0:00:12]}  Ke7 {[%clk 0:00:19]} 44. Ne5 {[%clk 0:00:12]}  Kf6 {[%clk 0:00:20]} 45. Kd3 {[%clk 0:00:12]}  Kg5 {[%clk 0:00:19]} 46. Ke3 {[%clk 0:00:13]}  f4+ {[%clk 0:00:19]} 47. Ke2 {[%clk 0:00:13]}  Kf5 {[%clk 0:00:20]} 48. Kd3 {[%clk 0:00:12]}  Be4+ {[%clk 0:00:19]} 49. Kd2 {[%clk 0:00:11]}  Bd5 {[%clk 0:00:19]} 50. Kd3 {[%clk 0:00:12]}  Kg5 {[%clk 0:00:16]} 51. Nf7+ {[%clk 0:00:12]}  Kg4 {[%clk 0:00:15]} 52. Ne5+ {[%clk 0:00:12]}  Kh3 {[%clk 0:00:11]} 53. Ng6 {[%clk 0:00:09]}  Kg4 {[%clk 0:00:07]} 54. Ne5+ {[%clk 0:00:09]}  Kf5 {[%clk 0:00:07]} 55. Nf7 {[%clk 0:00:09]}  Bc6 {[%clk 0:00:06]} 56. Nd6+ {[%clk 0:00:09]}  Kf6 {[%clk 0:00:05]} 57. Nc8 {[%clk 0:00:08]}  Bb5+ {[%clk 0:00:03]} 58. Ke4 {[%clk 0:00:09]}  a5 {[%clk 0:00:03]} 59. Nxb6 {[%clk 0:00:09]}  Kg5 {[%clk 0:00:02]} 60. Nc8 {[%clk 0:00:08]}  Bc6+ {[%clk 0:00:03]} 61. Ke5 {[%clk 0:00:08]}  Bd5 {[%clk 0:00:03]} 62. Nb6 {[%clk 0:00:08]}  Bb3 {[%clk 0:00:03]} 63. Ke4 {[%clk 0:00:09]}  Kg4 {[%clk 0:00:03]} 64. Nd7 {[%clk 0:00:08]}  Bc2+ {[%clk 0:00:04]} 65. Ke5 {[%clk 0:00:09]}  Bb3 {[%clk 0:00:04]} 66. Nc5 {[%clk 0:00:09]}  Bd5 {[%clk 0:00:04]} 67. Nxe6 {[%clk 0:00:09]}  Bxe6 {[%clk 0:00:04]} 68. Kxe6 {[%clk 0:00:10]}  Kf3 {[%clk 0:00:03]} 69. Ke5 {[%clk 0:00:11]}  Kxf2 {[%clk 0:00:00]} 70. Kxf4 {[%clk 0:00:11]} 1-0


[Site "https://www.chess.com"]